fUSD/lending_fUSD_20240808
["ID","MTS","AMOUNT","RATE_DAILY","PERIOD"]
[334448267,1723104678120,-500.0,0.00022739,5]
[334448268,1723104678130,-1343.58,0.00022739,5]
[334448269,1723104678140,-500.0,0.00022739,5]
[334448270,1723104678151,-522.87155816,0.00022739,5]
[334448271,1723104678161,-501.59198383,0.00022739,5]
[334448272,1723104678172,-515.37503503,0.00022739,5]
[334448273,1723104678182,-1343.58,0.00022739,5]
[334448274,1723104678191,-619.04,0.00022739,5]
[334448275,1723104678200,-1343.58,0.00022739,5]
[334448276,1723104678210,-619.04,0.00022739,5]
[334448277,1723104678220,-1343.58,0.00022739,5]
[334448278,1723104678229,-619.04,0.00022739,5]
[334448279,1723104678238,-1343.58,0.00022739,5]
[334448280,1723104678248,-619.04,0.00022739,5]
[334448281,1723104678258,-1343.58,0.00022739,5]
[334448282,1723104678267,-619.04,0.00022739,5]
[334448283,1723104678277,-1343.58,0.00022739,5]
[334448284,1723104678286,-619.04,0.00022739,5]
[334448285,1723104678295,-1343.67962187,0.00022739,5]
[334448286,1723104678305,-500.0,0.00022739,5]
[334448287,1723104678315,-619.04,0.00022739,5]
[334448288,1723104678324,-503.21430992,0.00022739,5]
[334448289,1723104678333,-500.0,0.00022739,5]
[334448290,1723104678343,-619.04,0.00022739,5]
[334448291,1723104678352,-500.0,0.00022739,5]
[334448292,1723104678363,-499.05156045,0.00022739,5]
[334448293,1723104678372,-619.04,0.00022739,5]
[334448294,1723104678382,-619.04,0.00022739,5]
[334448295,1723104678391,-592.97646182,0.00022739,5]
[334448296,1723104678400,-619.04,0.00022739,5]
[334448297,1723104678410,-619.04,0.00022739,5]
[334448298,1723104678421,-619.04,0.00022739,5]
[334448299,1723104678431,-503.47546615,0.00022739,5]
[334448300,1723104678440,-504.66533534,0.00022739,5]
[334448301,1723104678450,-619.04,0.00022739,5]
[334448302,1723104678460,-500.0,0.00022739,5]
[334448303,1723104678470,-619.04,0.00022739,5]
[334448304,1723104678479,-500.0,0.00022739,5]
[334448305,1723104678488,-619.04,0.00022739,5]
[334448306,1723104678497,-228.32739871,0.00022739,5]
[334448307,1723104678507,-502.01238124,0.00022739,5]
[334448308,1723104678516,-619.04,0.00022739,5]
[334448309,1723104678526,-619.04,0.00022739,5]
[334448310,1723104678536,-500.0,0.00022739,5]
[334448311,1723104678546,-619.04,0.00022739,5]
[334448312,1723104678555,-503.79322104,0.00022739,5]
[334448313,1723104678564,-619.04,0.00022739,5]
[334448314,1723104678573,-619.04,0.00022739,5]
[334448315,1723104678583,-619.04,0.00022739,5]
[334448316,1723104678592,-515.92628918,0.00022739,5]
[334448317,1723104678601,-502.05315546,0.00022739,5]
[334448318,1723104678614,-619.04,0.00022739,5]
[334448319,1723104678623,-619.06243983,0.00022739,5]
[334448320,1723104678632,-500.0,0.00022739,5]
[334448321,1723104678641,-500.52370297,0.00022739,5]
[334448322,1723104678652,-500.0,0.00022739,5]
[334448323,1723104678662,-500.0,0.00022739,5]
[334448324,1723104678673,-500.0,0.00022739,5]
[334448325,1723104678683,-506.72275282,0.00022739,5]
[334448326,1723104678694,-163.92564344,0.00022739,5]
[334448327,1723104678794,-504.00885643,0.00022739,5]
[334448328,1723104678805,-501.89893437,0.00022739,5]
[334448329,1723104678814,-500.0,0.00022739,5]
[334448330,1723104678824,-501.79613472,0.00022739,5]
[334448331,1723104678833,-500.0,0.00022739,5]
[334448332,1723104678842,-500.0,0.00022739,5]
[334448333,1723104678851,-500.0,0.00022739,5]
[334448334,1723104678861,-512.5013909,0.00022739,5]
[334448335,1723104678870,-502.97294517,0.00022739,5]
[334448336,1723104678880,-500.0,0.00022739,5]
[334448337,1723104678889,-500.0,0.00022739,5]
[334448338,1723104678898,-500.0,0.00022739,5]
[334448339,1723104678908,-500.0,0.00022739,5]
[334448340,1723104678919,-500.0,0.00022739,5]
[334448341,1723104678930,-500.0,0.00022739,5]
[334448342,1723104678939,-500.0,0.00022739,5]
[334448343,1723104678949,-581.31248966,0.00022739,5]
[334448344,1723104678959,-500.0,0.00022739,5]
[334448345,1723104678969,-506.63269267,0.00022739,5]
[334448346,1723104678979,-581.44179946,0.00022739,5]
[334448347,1723104678988,-501.79517934,0.00022739,5]
[334448348,1723104678999,-500.0,0.00022739,5]
[334448349,1723104679009,-500.0,0.00022739,5]
[334448350,1723104679019,-500.0,0.00022739,5]
[334448351,1723104679028,-506.66953095,0.00022739,5]
[334448352,1723104679038,-507.78456922,0.00022739,5]
[334448353,1723104679048,-500.0,0.00022739,5]
[334448354,1723104679057,-155.71607499,0.00022739,5]
[334448355,1723104679067,-516.50854588,0.00022739,5]
[334448356,1723104679076,-500.0,0.00022739,5]
[334448357,1723104679087,-500.0,0.00022739,5]
[334448358,1723104679097,-500.0,0.00022739,5]
[334448359,1723104679107,-500.0,0.00022739,5]
[334448360,1723104679118,-451.89524813,0.00022739,5]
[334448361,1723104679127,-500.0,0.00022739,5]
[334448362,1723104679137,-500.0,0.00022739,5]
[334448363,1723104679148,-500.0,0.00022739,5]
[334448364,1723104679157,-501.78845415,0.00022739,5]
[334448365,1723104679168,-533.05979755,0.00022739,5]
[334448366,1723104679179,-507.74669422,0.00022739,5]
[334448367,1723104679189,-500.32993605,0.00022739,5]
[334448368,1723104679199,-352.80778631,0.00022739,5]
[334448369,1723104679209,-501.75070468,0.00022739,5]
[334448370,1723104679219,-504.21718188,0.00022739,5]
[334448371,1723104679229,-485.19996127,0.00022739,5]
[334448372,1723104679239,-501.71373996,0.00022739,5]
[334448373,1723104679249,-500.0,0.00022739,5]
[334448374,1723104679259,-589.70216669,0.00022739,5]
[334448375,1723104679269,-502.7959954,0.00022739,5]
[334448376,1723104679279,-500.0,0.00022739,5]
[334448377,1723104679289,-503.99928219,0.00022739,5]
[334448378,1723104679299,-502.3332859,0.00022739,5]
[334448379,1723104679309,-538.45863435,0.00022739,5]
[334448380,1723104679319,-501.82051142,0.00022739,5]
[334448381,1723104679329,-500.0,0.00022739,5]
[334448382,1723104679339,-152.95118481,0.00022739,5]
[334448383,1723104679348,-500.0,0.00022739,5]
[334448384,1723104679359,-500.0,0.00022739,5]
[334448385,1723104679369,-499.20299905,0.00022739,5]
[334448386,1723104679378,-500.0,0.00022739,5]
[334448387,1723104679388,-509.48124754,0.00022739,5]
[334448388,1723104679398,-500.0,0.00022739,5]
[334448389,1723104679408,-500.0,0.00022739,5]
[334448390,1723104679419,-500.0,0.00022739,5]
[334448391,1723104679429,-446.29298263,0.00022739,5]
[334448392,1723104679439,-290.16056927,0.00022739,5]
[334448393,1723104679448,-513.56681645,0.00022739,5]
[334448394,1723104679458,-500.0,0.00022739,5]
[334448395,1723104679467,-448.70275444,0.00022739,5]
[334448396,1723104679477,-500.0,0.00022739,5]
[334448397,1723104679488,-500.0,0.00022739,5]
[334448398,1723104679497,-499.20921331,0.00022739,5]
[334448399,1723104679507,-501.70394378,0.00022739,5]
[334448400,1723104679516,-510.42230303,0.00022739,5]
[334448401,1723104679526,-500.0,0.00022739,5]
[334448402,1723104679536,-500.0,0.00022739,5]
[334448403,1723104679547,-525.36871963,0.00022739,5]
[334448404,1723104679557,-495.50071618,0.00022739,5]
[334448405,1723104679567,-500.0,0.00022739,5]
[334448406,1723104679576,-501.45198599,0.00022739,5]
[334448407,1723104679586,-502.8900336,0.00022739,5]
[334448408,1723104679596,-501.31037022,0.00022739,5]
[334448409,1723104679607,-519.03566761,0.00022739,5]
[334448410,1723104679621,-500.0,0.00022739,5]
[334448411,1723104679631,-500.0,0.00022739,5]
[334448412,1723104679641,-508.38508116,0.00022739,5]
[334448413,1723104679651,-536.77143614,0.00022739,5]
[334448414,1723104679660,-500.0,0.00022739,5]
[334448415,1723104679670,-502.11075761,0.00022739,5]
[334448416,1723104679680,-567.91822652,0.00022739,5]
[334448417,1723104679690,-1078.52,0.00022739,5]
[334448418,1723104679700,-1078.52,0.00022739,5]
[334448419,1723104679711,-1078.52,0.00022739,5]
[334448420,1723104679720,-400.0,0.00022739,5]
[334448421,1723104679730,-1078.52,0.00022739,5]
[334448422,1723104679739,-1297.27,0.00022739,5]
[334448423,1723104679749,-402.18632218,0.00022739,5]
[334448424,1723104679760,-1078.52,0.00022739,5]
[334448425,1723104679769,-516.68602653,0.00022739,5]
[334448426,1723104679779,-1297.27,0.00022739,5]
[334448427,1723104679788,-1078.52,0.00022739,5]
[334448428,1723104679798,-1297.27,0.00022739,5]
[334448429,1723104679807,-1078.52,0.00022739,5]
[334448430,1723104679818,-1297.27,0.00022739,5]
[334448431,1723104679828,-1078.52,0.00022739,5]
[334448432,1723104679838,-1297.27,0.00022739,5]
[334448433,1723104679847,-503.31556494,0.00022739,5]
[334448434,1723104679857,-1078.52,0.00022739,5]
[334448435,1723104679867,-1297.27,0.00022739,5]
[334448436,1723104679877,-500.0,0.00022739,5]
[334448437,1723104679887,-1078.52,0.00022739,5]
[334448438,1723104679897,-1297.27,0.00022739,5]
[334448439,1723104679907,-500.0,0.00022739,5]
[334448440,1723104679917,-1078.52,0.00022739,5]
[334448441,1723104679930,-1297.27,0.00022739,5]
[334448442,1723104679939,-454.57,0.00022739,5]
[334448443,1723104679949,-1078.52,0.00022739,5]
[334448444,1723104679960,-1297.27,0.00022739,5]
[334448445,1723104679969,-501.43652907,0.00022739,5]
[334448446,1723104679979,-1078.52,0.00022739,5]
[334448447,1723104679989,-1297.27,0.00022739,5]
[334448448,1723104679998,-500.0,0.00022739,5]
[334448449,1723104680008,-514.27325043,0.00022739,5]
[334448450,1723104680017,-1297.27,0.00022739,5]
[334448451,1723104680027,-1078.52,0.00022739,5]
[334448452,1723104680036,-505.50473821,0.00022739,5]
[334448453,1723104680046,-1297.27,0.00022739,5]
[334448454,1723104680056,-1078.52,0.00022739,5]
[334448455,1723104680066,-1297.27,0.00022739,5]
[334448456,1723104680075,-1078.52,0.00022739,5]
[334448457,1723104680085,-500.0,0.00022739,5]
[334448458,1723104680096,-493.56033058,0.00022739,5]
[334448459,1723104680106,-1297.27,0.00022739,5]
[334448460,1723104680116,-500.43230762,0.00022739,5]
[334448461,1723104680126,-1078.52,0.00022739,5]
[334448462,1723104680137,-1297.27,0.00022739,5]
[334448463,1723104680149,-1078.52,0.00022739,5]
[334448464,1723104680243,-1297.27,0.00022739,5]
[334448465,1723104680254,-1297.27,0.00022739,5]
[334448466,1723104680265,-1078.52,0.00022739,5]
[334448467,1723104680275,-511.26724024,0.00022739,5]
[334448468,1723104680285,-500.0,0.00022739,5]
[334448469,1723104680294,-502.19204431,0.00022739,5]
[334448470,1723104680305,-1297.27,0.00022739,5]
[334448471,1723104680315,-1078.52,0.00022739,5]
[334448472,1723104680326,-500.0,0.00022739,5]
[334448473,1723104680336,-1297.27,0.00022739,5]
[334448474,1723104680347,-1078.52,0.00022739,5]
[334448475,1723104680357,-500.0,0.00022739,5]
[334448476,1723104680367,-1078.52,0.00022739,5]
[334448477,1723104680376,-1297.27,0.00022739,5]
[334448478,1723104680386,-500.0,0.00022739,5]
[334448479,1723104680395,-1078.52,0.00022739,5]
[334448480,1723104680405,-1297.27,0.00022739,5]
[334448481,1723104680415,-500.0,0.00022739,5]
[334448482,1723104680426,-504.90044489,0.00022739,5]
[334448483,1723104680436,-500.0,0.00022739,5]
[334448484,1723104680446,-1078.75969189,0.00022739,5]
[334448485,1723104680455,-1297.27,0.00022739,5]
[334448486,1723104680464,-291.42674528,0.00022739,5]
[334448487,1723104680474,-500.0,0.00022739,5]
[334448488,1723104680483,-237.30707998,0.00022739,5]
[334448489,1723104680494,-1297.27,0.00022739,5]
[334448490,1723104680503,-500.0,0.00022739,5]
[334448491,1723104680513,-1297.48467778,0.00022739,5]
[334448492,1723104680522,-500.0,0.00022739,5]
[334448493,1723104680533,-501.04937258,0.00022739,5]
[334448494,1723104680542,-409.21500109,0.00022739,5]
[334448495,1723104680552,-500.0,0.00022739,5]
[334448496,1723104680561,-1710.41,0.00022739,5]
[334448497,1723104680571,-501.1183685,0.00022739,5]
[334448498,1723104680580,-1710.41,0.00022739,5]
[334448499,1723104680590,-527.37484427,0.00022739,5]
[334448500,1723104680600,-1710.41,0.00022739,5]
[334448501,1723104680612,-1710.41,0.00022739,5]
[334448502,1723104680622,-503.33430789,0.00022739,5]
[334448503,1723104680631,-1710.41,0.00022739,5]
[334448504,1723104680641,-1710.41,0.00022739,5]
[334448505,1723104680651,-1710.41,0.00022739,5]
[334448506,1723104680661,-1710.41,0.00022739,5]
[334448507,1723104680673,-500.0,0.00022739,5]
[334448508,1723104680690,-500.0,0.00022739,5]
[334448509,1723104680699,-1710.41,0.00022739,5]
[334448510,1723104680709,-506.17551647,0.00022739,5]
[334448511,1723104680718,-500.0,0.00022739,5]
[334448512,1723104680729,-1710.41,0.00022739,5]
[334448513,1723104680739,-500.0,0.00022739,5]
[334448514,1723104680748,-421.40111854,0.00022739,5]
[334448515,1723104680758,-1710.41,0.00022739,5]
[334448516,1723104680768,-500.0,0.00022739,5]
[334448517,1723104680778,-1710.41,0.00022739,5]
[334448518,1723104680787,-380.43148658,0.00022739,5]
[334448519,1723104680797,-1710.41,0.00022739,5]
[334448520,1723104680808,-1710.41,0.00022739,5]
[334448521,1723104680818,-1710.41,0.00022739,5]
[334448522,1723104680827,-500.0,0.00022739,5]
[334448523,1723104680837,-1710.41,0.00022739,5]
[334448524,1723104680846,-506.31493513,0.00022739,5]
[334448525,1723104680855,-1710.41,0.00022739,5]
[334448526,1723104680865,-511.84209606,0.00022739,5]
[334448527,1723104680882,-543.19110801,0.00022739,5]
[334448528,1723104680900,-1710.41,0.00022739,5]
[334448529,1723104680920,-1710.41,0.00022739,5]
[334448530,1723104680941,-1710.41,0.00022739,5]
[334448531,1723104680959,-158.93903942,0.00022773,2]
[334448532,1723104680978,-2728.32003343,0.00022789,15]
[334448533,1723104680996,-2568.915,0.00022798,2]
[334448534,1723104681010,-4440.98,0.00022798,2]
[334448535,1723104681029,-1515.75,0.00022798,2]
[334448536,1723104681050,-289.0,0.00022798,2]
[334448537,1723104681065,-21745.0,0.00022798,2]
[334448538,1723104681081,-10200.0,0.000228,8]
[334448539,1723104681098,-500.0,0.00022897,2]
[334448540,1723104681116,-2000.0,0.000229,8]
[334448541,1723104681131,-512.928124,0.00022908,2]
[334448542,1723104681147,-310.422977,0.00022908,2]
[334448543,1723104681163,-1241.691906,0.00022908,2]
[334448544,1723104681181,-1197.864787,0.00022908,2]
[334448545,1723104681197,-150.0,0.00023071,2]
[334448546,1723104681212,-186.677664,0.00023094,2]
[334448547,1723104681229,-512.928124,0.00023187,2]
[334448548,1723104681245,-310.422977,0.00023187,2]
[334448549,1723104681261,-1241.691906,0.00023187,2]
[334448550,1723104681283,-1197.864787,0.00023187,2]
[334448551,1723104681299,-1001.36,0.000232,2]
[334448552,1723104681316,-180.0,0.00023205,2]
[334448553,1723104681331,-165.1649757,0.000234,2]
[334448554,1723104681347,-8804.70379148,0.00023412,2]
[334448555,1723104681363,-512.928124,0.00023466,2]
[334448556,1723104681377,-186.677664,0.00023466,2]
[334448557,1723104681393,-310.422977,0.00023466,2]
[334448558,1723104681409,-1241.691906,0.00023466,2]
[334448559,1723104681426,-1197.864787,0.00023466,2]
[334448560,1723104681441,-176.176228,0.00023466,2]
[334448561,1723104681456,-1931.28080475,0.00023555,2]
[334448562,1723104681471,-994.60198096,0.00023648,2]
[334448563,1723104681487,-8247.6388796,0.00023648,2]
[334448564,1723104681503,-150.0,0.00023648,2]
[334448565,1723104681519,-5311.12058017,0.00023652,2]
[334448566,1723104681534,-500.0,0.0002366,2]
[334448567,1723104681550,-1120.41,0.000237,7]
[334448568,1723104681566,-1000.0,0.000238,7]
[334448569,1723104681582,-1000.0,0.000238,7]
[334448570,1723104681597,-1000.0,0.000238,7]
[334448571,1723104681613,-868.31,0.000238,7]
[334448572,1723104681629,-6453.899,0.000238,7]
[334448573,1723104681645,-1924.0,0.00023803,2]
[334448574,1723104681660,-688.5,0.00023803,2]
[334448575,1723104681678,-622.0,0.00023803,2]
[334448576,1723104681694,-224.467,0.00023803,2]
[334448577,1723104681709,-1965.601,0.00023803,2]
[334448578,1723104681725,-152.0,0.00023869,5]
[334448579,1723104681739,-931.0,0.00023917,2]
[334448580,1723104681755,-992.5951395,0.00023985,2]
[334448581,1723104681771,-5140.0,0.00024,2]
[334448582,1723104681787,-500.0,0.00024,2]
[334448583,1723104681804,-578.06948962,0.00024,5]
[334448584,1723104681820,-1001.36,0.0002402,2]
[334448585,1723104681835,-931.0,0.00024164,2]
[334448586,1723104681850,-600.0,0.00024165,3]
[334448587,1723104681865,-608.8219966,0.00024165,3]
[334448588,1723104681880,-208.0,0.0002417,2]
[334448589,1723104681895,-207.0,0.0002417,2]
[334448590,1723104682040,-201.0,0.0002417,2]
[334448591,1723104682051,-211.0,0.0002417,2]
[334448592,1723104682060,-4999.20706113,0.0002418,9]
[334448593,1723104682070,-152.73,0.00024224,2]
[334448594,1723104682079,-150.0,0.00024225,2]
[334448595,1723104682089,-373.32372768,0.00024403,2]
[334448596,1723104682098,-500.0,0.00024404,2]
[334448597,1723104682108,-429.20863903,0.00024404,2]
[334448598,1723104682117,-546.18405436,0.00024405,2]
[334448599,1723104682127,-546.18405436,0.0002441,2]
[334448600,1723104682136,-931.0,0.0002441,2]
[334448601,1723104682147,-373.32372768,0.00024411,2]
[334448602,1723104682156,-500.0,0.00024412,2]
[334448603,1723104682166,-315.60929496,0.00024413,2]
[334448604,1723104682176,-153.84058534,0.00024415,2]
[334448605,1723104682185,-429.20863903,0.00024418,2]
[334448606,1723104682195,-1500.0,0.00024418,2]
[334448607,1723104682204,-546.18405436,0.00024419,2]
[334448608,1723104682214,-500.0,0.00024421,2]
[334448609,1723104682224,-728.10524485,0.00024421,2]
[334448610,1723104682233,-194.22581935,0.00024424,2]
[334448611,1723104682242,-420.88393679,0.00024424,2]
[334448612,1723104682252,-546.18405436,0.00024426,2]
[334448613,1723104682262,-273.95183709,0.00024426,2]
[334448614,1723104682271,-373.32372768,0.00024426,2]
[334448615,1723104682281,-153.84058534,0.00024427,2]
[334448616,1723104682291,-728.10524485,0.00024427,2]
[334448617,1723104682301,-315.60929496,0.00024429,2]
[334448618,1723104682311,-500.0,0.0002443,2]
[334448619,1723104682322,-315.60929496,0.00024431,2]
[334448620,1723104682331,-373.32372768,0.00024432,2]
[334448621,1723104682341,-273.95183709,0.00024433,2]
[334448622,1723104682350,-194.22581935,0.00024435,2]
[334448623,1723104682359,-153.84058534,0.00024435,2]
[334448624,1723104682369,-273.95183709,0.00024437,2]
[334448625,1723104682379,-315.60929496,0.00024438,2]
[334448626,1723104682388,-500.0,0.00024439,2]
[334448627,1723104682398,-315.60929496,0.00024441,2]
[334448628,1723104682408,-420.88393679,0.00024442,2]
[334448629,1723104682418,-273.95183709,0.00024443,2]
[334448630,1723104682429,-373.32372768,0.00024445,2]
[334448631,1723104682438,-546.18405436,0.00024445,2]
[334448632,1723104682448,-150.0,0.00024446,10]
[334448633,1723104682457,-150.0,0.00024446,10]
[334448634,1723104682467,-150.0,0.00024446,10]
[334448635,1723104682477,-300.0,0.00024446,2]
[334448636,1723104682487,-300.0,0.00024446,2]
[334448637,1723104682497,-300.0,0.00024446,2]
[334448638,1723104682506,-511.25174594,0.00024446,2]
[334448639,1723104682515,-300.0,0.00024446,2]
[334448640,1723104682524,-300.0,0.00024446,2]
[334448641,1723104682534,-1187.1374212,0.00024446,10]
[334448642,1723104682543,-429.20863903,0.00024446,2]
[334448643,1723104682554,-249294.95984575,0.00024447,2]
[334448644,1723104682563,-151.0,0.00024447,7]
[334448645,1723104682573,-151.448706,0.00024447,7]
[334448646,1723104682583,-151.149608,0.00024447,7]
[334448647,1723104682593,-152.249312,0.00024447,7]
[334448648,1723104682602,-151.0,0.00024447,7]
[334448649,1723104682614,-152.249312,0.00024447,7]
[334448650,1723104682625,-151.0,0.00024447,7]
[334448651,1723104682635,-151.232918,0.00024447,7]
[334448652,1723104682647,-151.421313,0.00024447,7]
[334448653,1723104682657,-151.599719,0.00024447,7]
[334448654,1723104682667,-151.0,0.00024447,7]
[334448655,1723104682678,-151.0,0.00024447,7]
[334448656,1723104682689,-151.0,0.00024447,2]
[334448657,1723104682699,-151.0,0.00024447,7]
[334448658,1723104682709,-151.0,0.00024447,7]
[334448659,1723104682718,-151.0,0.00024447,7]
[334448660,1723104682728,-151.24852,0.00024447,7]
[334448661,1723104682737,-151.0,0.00024447,7]
[334448662,1723104682747,-151.0,0.00024447,7]
[334448663,1723104682756,-151.0,0.00024447,7]
[334448664,1723104682766,-151.0,0.00024447,7]
[334448665,1723104682775,-151.0,0.00024447,7]
[334448666,1723104682785,-188.185037,0.00024447,7]
[334448667,1723104682795,-151.0,0.00024447,7]
[334448668,1723104682804,-151.211894,0.00024447,7]
[334448669,1723104682814,-151.315391,0.00024447,7]
[334448670,1723104682824,-151.0,0.00024447,7]
[334448671,1723104682833,-151.272333,0.00024447,7]
[334448672,1723104682842,-151.374138,0.00024447,7]
[334448673,1723104682852,-151.0,0.00024447,7]
[334448674,1723104682862,-151.0,0.00024447,7]
[334448675,1723104682871,-151.338558,0.00024447,7]
[334448676,1723104682881,-151.0,0.00024447,2]
[334448677,1723104682890,-151.0,0.00024447,7]
[334448678,1723104682900,-151.0,0.00024447,7]
[334448679,1723104682909,-151.0,0.00024447,7]
[334448680,1723104682919,-151.0,0.00024447,7]
[334448681,1723104682930,-151.0,0.00024447,7]
[334448682,1723104682939,-151.0,0.00024447,7]
[334448683,1723104682948,-151.0,0.00024447,7]
[334448684,1723104682958,-217.814085,0.00024447,7]
[334448685,1723104682969,-151.0,0.00024447,7]
[334448686,1723104682978,-151.0,0.00024447,7]
[334448687,1723104682988,-151.0,0.00024447,7]
[334448688,1723104682997,-151.0,0.00024447,7]
[334448689,1723104683007,-151.0,0.00024447,7]
[334448690,1723104683017,-151.0,0.00024447,7]
[334448691,1723104683027,-151.0,0.00024447,7]
[334448692,1723104683036,-151.0,0.00024447,7]
[334448693,1723104683046,-151.0,0.00024447,7]
[334448694,1723104683056,-151.0,0.00024447,7]
[334448695,1723104683066,-151.0,0.00024447,7]
[334448696,1723104683077,-151.0,0.00024447,7]
[334448697,1723104683087,-151.0,0.00024447,7]
[334448698,1723104683098,-151.0,0.00024447,7]
[334448699,1723104683108,-151.0,0.00024447,7]
[334448700,1723104683117,-151.0,0.00024447,7]
[334448701,1723104683127,-151.0,0.00024447,7]
[334448702,1723104683138,-151.0,0.00024447,7]
[334448703,1723104683149,-151.0,0.00024447,7]
[334448704,1723104683160,-151.0,0.00024447,7]
[334448705,1723104683170,-151.0,0.00024447,7]
[334448706,1723104683180,-151.0,0.00024447,7]
[334448707,1723104683190,-151.0,0.00024447,7]
[334448708,1723104683200,-151.0,0.00024447,7]
[334448709,1723104683210,-181.054016,0.00024447,7]
[334448710,1723104683220,-151.0,0.00024447,7]
[334448711,1723104683231,-151.0,0.00024447,7]
[334448712,1723104683241,-151.0,0.00024447,7]
[334448713,1723104683251,-151.0,0.00024447,7]
[334448714,1723104683261,-151.0,0.00024447,7]
[334448715,1723104683271,-151.0,0.00024447,7]
[334448716,1723104683281,-151.0,0.00024447,7]
[334448717,1723104683290,-151.0,0.00024447,7]
[334448718,1723104683300,-151.0,0.00024447,7]
[334448719,1723104683309,-151.0,0.00024447,7]
[334448720,1723104683319,-151.0,0.00024447,7]
[334448721,1723104683328,-151.0,0.00024447,7]
[334448722,1723104683338,-151.0,0.00024447,7]
[334448723,1723104683348,-151.0,0.00024447,7]
[334448724,1723104683357,-151.183454,0.00024447,7]
[334448725,1723104683366,-160.533956,0.00024447,7]
[334448726,1723104683376,-151.0,0.00024447,7]
[334448727,1723104683386,-151.0,0.00024447,7]
[334448728,1723104683396,-151.0,0.00024447,7]
[334448729,1723104683499,-271.986246,0.00024447,7]
[334448730,1723104683510,-271.986246,0.00024447,7]
[334448731,1723104683520,-328.28582,0.00024447,7]
[334448732,1723104683530,-328.28582,0.00024447,7]
[334448733,1723104683540,-151.0,0.00024447,7]
[334448734,1723104683550,-151.0,0.00024447,7]
[334448735,1723104683559,-151.0,0.00024447,7]
[334448736,1723104683569,-151.0,0.00024447,7]
[334448737,1723104683579,-151.0,0.00024447,7]
[334448738,1723104683588,-284.557277,0.00024447,7]
[334448739,1723104683597,-844.637195,0.00024447,7]
[334448740,1723104683608,-151.0,0.00024447,7]
[334448741,1723104683623,-151.0,0.00024447,7]
[334448742,1723104683633,-844.637195,0.00024447,7]
[334448743,1723104683642,-151.0,0.00024447,7]
[334448744,1723104683653,-151.0,0.00024447,7]
[334448745,1723104683662,-151.0,0.00024447,7]
[334448746,1723104683673,-151.0,0.00024447,7]
[334448747,1723104683684,-151.0,0.00024447,7]
[334448748,1723104683696,-151.0,0.00024447,7]
[334448749,1723104683707,-151.0,0.00024447,7]
[334448750,1723104683716,-151.0,0.00024447,7]
[334448751,1723104683726,-151.0,0.00024447,7]
[334448752,1723104683735,-150.0,0.00024447,10]
[334448753,1723104683744,-150.0,0.00024447,10]
[334448754,1723104683753,-300.0,0.00024447,2]
[334448755,1723104683764,-300.0,0.00024447,2]
[334448756,1723104683773,-300.0,0.00024447,2]
[334448757,1723104683783,-300.0,0.00024447,2]
[334448758,1723104683792,-300.0,0.00024447,2]
[334448759,1723104683803,-500.0,0.00024448,2]
[334448760,1723104683813,-249294.95984575,0.00024448,2]
[334448761,1723104683824,-273.95183709,0.00024449,2]
[334448762,1723104683834,-429.20863903,0.00024451,2]
[334448763,1723104683844,-273.95183709,0.00024451,2]
[334448764,1723104683854,-273.95183709,0.00024454,2]
[334448765,1723104683863,-315.60929496,0.00024455,2]
[334448766,1723104683873,-249294.95984575,0.00024456,2]